fUSD/lending_fUSD_20251120
["ID","MTS","AMOUNT","RATE_DAILY","PERIOD"]
[394521147,1763663896768,-870.0,0.00042161,30]
[394521148,1763663896795,-254.61743409,0.00042328,30]
[394521149,1763663896822,-870.0,0.00042583,30]
[394521150,1763663896849,-424.36239015,0.00042834,30]
[394521151,1763663896880,-707.27065026,0.00042834,30]
[394521152,1763663896908,-1087.39567543,0.00042869,30]
[394521153,1763663896936,-870.0,0.00043004,30]
[394521154,1763663896962,-249.13780819,0.000431,120]
[394521155,1763663896993,-475.55468836,0.000431,120]
[394521156,1763663897030,-870.0,0.00043426,30]
[394521157,1763663897063,-1444.0,0.00043562,120]
[394521158,1763663897102,-254.61743409,0.0004381,30]
[394521159,1763663897141,-424.36239015,0.00044283,30]
[394521160,1763663897173,-707.27065026,0.00044283,30]
[394521161,1763663897206,-249.13780819,0.000444,120]
[394521162,1763663897243,-475.55468836,0.000444,120]
[394521163,1763663897278,-1055.19,0.000448,120]
[394521164,1763663897315,-519.36,0.00044845,120]
[394521165,1763663897352,-1096.0,0.00045125,30]
[394521166,1763663897389,-254.61743409,0.00045291,30]
[394521167,1763663897425,-249.13780819,0.000457,120]
[394521168,1763663897466,-475.55468836,0.000457,120]
[394521169,1763663897501,-424.36239015,0.00045731,30]
[394521170,1763663897535,-707.27065026,0.00045731,30]
[394521171,1763663897576,-195.36,0.00046,30]
[394521172,1763663897617,-216.14374642,0.00046764,120]
[394521173,1763663897649,-254.61743409,0.00046773,30]
[394521174,1763663897686,-216.14374642,0.00047026,120]
[394521175,1763663897716,-249.13780819,0.000471,120]
[394521176,1763663897747,-475.55468836,0.000471,120]
[394521177,1763663897779,-424.36239015,0.0004718,30]
[394521178,1763663897810,-216.14374642,0.00047214,120]
[394521179,1763663897844,-272.34861532,0.00047424,120]
[394521180,1763663897875,-216.14374642,0.00047473,120]
[394521181,1763663897906,-1096.0,0.000475,30]
[394521182,1763663897940,-936.27241046,0.0004788,100]
[394521183,1763663897974,-216.14374642,0.00047896,120]
[394521184,1763663898010,-800.0,0.00048,120]
[394521185,1763663898046,-685247.93,0.00048,120]
[394521186,1763663898078,-216.14374642,0.00048041,120]
[394521187,1763663898109,-254.61743409,0.00048254,30]
[394521188,1763663898141,-500.0,0.00048356,60]
[394521189,1763663898171,-500.0,0.00048356,60]
[394521190,1763663898203,-500.0,0.00048356,60]
[394521191,1763663898235,-216.14374642,0.00048434,120]
[394521192,1763663898266,-216.14374642,0.00048563,120]
[394521193,1763663898298,-424.36239015,0.00048628,30]
[394521194,1763663898331,-216.14374642,0.00048988,120]
[394521195,1763663898363,-150.57815496,0.0004901,62]
[394521196,1763663898399,-216.14374642,0.00049279,120]
[394521197,1763663898433,-629.03,0.00049414,30]
[394521198,1763663898467,-500.0,0.00049452,60]
[394521199,1763663898501,-216.14374642,0.00049564,120]
[394521200,1763663898535,-1008.55740202,0.00049593,120]
[394521201,1763663898568,-216.14374642,0.00049614,120]
[394521202,1763663898599,-254.61743409,0.00049736,30]
[394521203,1763663898630,-231.18321857,0.0004975,120]
[394521204,1763663898661,-632.36538194,0.0004975,120]
[394521205,1763663898888,-150.0,0.000498,30]
[394521206,1763663898916,-519.36,0.00049892,120]
[394521207,1763663898944,-1000.0,0.00049946,30]
[394521208,1763663898972,-168.66280991,0.00049999,50]
[394521209,1763663898999,-150.0,0.00049999,50]
[394521210,1763663899027,-200.0,0.00049999,50]
[394521211,1763663899054,-150.0,0.00049999,50]
[394521212,1763663899081,-207.05073963,0.00049999,50]
[394521213,1763663899109,-500.0,0.00049999,50]
[394521214,1763663899136,-500.0,0.00049999,50]
[394521215,1763663899162,-500.0,0.00049999,50]
[394521216,1763663899188,-500.0,0.00049999,50]
[394521217,1763663899214,-500.0,0.00049999,50]
[394521218,1763663899240,-500.0,0.00049999,50]
[394521219,1763663899268,-500.0,0.00049999,50]
[394521220,1763663899296,-464.91827268,0.00049999,50]
[394521221,1763663899322,-150.0,0.00049999,50]
[394521222,1763663899349,-500.0,0.00049999,50]
[394521223,1763663899377,-500.0,0.00049999,50]
[394521224,1763663899404,-500.0,0.00049999,50]
[394521225,1763663899432,-350.0,0.00049999,50]
[394521226,1763663899459,-500.0,0.00049999,50]
[394521227,1763663899487,-500.0,0.00049999,50]
[394521228,1763663899514,-500.0,0.00049999,50]
[394521229,1763663899542,-500.0,0.00049999,50]
[394521230,1763663899570,-500.0,0.00049999,50]
[394521231,1763663899597,-305.25162148,0.00049999,50]
[394521232,1763663899624,-150.0,0.00049999,50]
[394521233,1763663899652,-150.0,0.00049999,50]
[394521234,1763663899679,-150.0,0.00049999,50]
[394521235,1763663899705,-202.73893435,0.00049999,50]
[394521236,1763663899732,-500.0,0.00049999,50]
[394521237,1763663899761,-500.0,0.00049999,50]
[394521238,1763663899795,-354.96191217,0.00049999,50]
[394521239,1763663899826,-500.0,0.00049999,50]
[394521240,1763663899860,-500.0,0.00049999,50]
[394521241,1763663899893,-174.76496096,0.00049999,50]
[394521242,1763663899924,-150.0,0.00049999,50]
[394521243,1763663899954,-151.09343578,0.00049999,50]
[394521244,1763663899983,-500.0,0.00049999,50]
[394521245,1763663900013,-500.0,0.00049999,50]
[394521246,1763663900046,-500.0,0.00049999,50]
[394521247,1763663900073,-164.51762827,0.00049999,50]
[394521248,1763663900100,-150.0,0.00049999,50]
[394521249,1763663900126,-150.0,0.00049999,50]
[394521250,1763663900152,-150.0,0.00049999,50]
[394521251,1763663900179,-150.0,0.00049999,50]
[394521252,1763663900204,-150.0,0.00049999,50]
[394521253,1763663900230,-202.56612552,0.00049999,50]
[394521254,1763663900256,-500.0,0.00049999,50]
[394521255,1763663900285,-500.0,0.00049999,50]
[394521256,1763663900311,-500.0,0.00049999,50]
[394521257,1763663900338,-300.0,0.00049999,50]
[394521258,1763663900368,-500.0,0.00049999,50]
[394521259,1763663900395,-500.0,0.00049999,50]
[394521260,1763663900424,-500.0,0.00049999,50]
[394521261,1763663900453,-500.0,0.00049999,50]
[394521262,1763663900482,-500.0,0.00049999,50]
[394521263,1763663900510,-427.50753764,0.00049999,50]
[394521264,1763663900542,-500.0,0.00049999,50]
[394521265,1763663900568,-500.0,0.00049999,50]
[394521266,1763663900595,-500.0,0.00049999,50]
[394521267,1763663900621,-431.75820498,0.00049999,50]
[394521268,1763663900647,-150.0,0.00049999,50]
[394521269,1763663900676,-150.0,0.00049999,50]
[394521270,1763663900706,-150.0,0.00049999,50]
[394521271,1763663900737,-202.6081051,0.00049999,50]
[394521272,1763663900766,-150.0,0.00049999,50]
[394521273,1763663900800,-150.0,0.00049999,50]
[394521274,1763663900827,-150.0,0.00049999,50]
[394521275,1763663900854,-150.0,0.00049999,50]
[394521276,1763663900883,-216.77256822,0.00049999,50]
[394521277,1763663900911,-150.0,0.00049999,50]
[394521278,1763663900939,-150.0,0.00049999,50]
[394521279,1763663900965,-150.0,0.00049999,50]
[394521280,1763663900992,-150.0,0.00049999,50]
[394521281,1763663901023,-150.0,0.00049999,50]
[394521282,1763663901051,-150.0,0.00049999,50]
[394521283,1763663901078,-150.0,0.00049999,50]
[394521284,1763663901104,-150.0,0.00049999,50]
[394521285,1763663901130,-150.0,0.00049999,50]
[394521286,1763663901155,-150.0,0.00049999,50]
[394521287,1763663901181,-150.0,0.00049999,50]
[394521288,1763663901207,-150.0,0.00049999,50]
[394521289,1763663901232,-150.0,0.00049999,50]
[394521290,1763663901257,-274.89583209,0.00049999,50]
[394521291,1763663901285,-1607.0,0.00049999,50]
[394521292,1763663901312,-1607.0,0.00049999,50]
[394521293,1763663901339,-1607.0,0.00049999,50]
[394521294,1763663901367,-1607.0,0.00049999,50]
[394521295,1763663901398,-1607.0,0.00049999,50]
[394521296,1763663901425,-1607.0,0.00049999,50]
[394521297,1763663901452,-1607.0,0.00049999,50]
[394521298,1763663901479,-1607.0,0.00049999,50]
[394521299,1763663901505,-1607.0,0.00049999,50]
[394521300,1763663901535,-1607.0,0.00049999,50]
[394521301,1763663901563,-1607.0,0.00049999,50]
[394521302,1763663901590,-1607.0,0.00049999,50]
[394521303,1763663901616,-1607.0,0.00049999,50]
[394521304,1763663901644,-1607.0,0.00049999,50]
[394521305,1763663901807,-1607.0,0.00049999,50]
[394521306,1763663901833,-1607.0,0.00049999,50]
[394521307,1763663901858,-1607.0,0.00049999,50]
[394521308,1763663901884,-1607.0,0.00049999,50]
[394521309,1763663901909,-1607.0,0.00049999,50]
[394521310,1763663901935,-1607.0,0.00049999,50]
[394521311,1763663901961,-1607.0,0.00049999,50]
[394521312,1763663901988,-1607.0,0.00049999,50]
[394521313,1763663902015,-1607.0,0.00049999,50]
[394521314,1763663902042,-1625.71408584,0.00049999,50]
[394521315,1763663902067,-150.0,0.00049999,50]
[394521316,1763663902092,-150.0,0.00049999,50]
[394521317,1763663902119,-150.0,0.00049999,50]
[394521318,1763663902145,-150.0,0.00049999,50]
[394521319,1763663902171,-150.0,0.00049999,50]
[394521320,1763663902197,-292.9077299,0.00049999,50]
[394521321,1763663902223,-150.0,0.00049999,50]
[394521322,1763663902249,-150.0,0.00049999,50]
[394521323,1763663902275,-151.99993636,0.00049999,50]
[394521324,1763663902317,-150.0,0.00049999,50]
[394521325,1763663902346,-150.0,0.00049999,50]
[394521326,1763663902375,-150.0,0.00049999,50]
[394521327,1763663902401,-150.0,0.00049999,50]
[394521328,1763663902428,-150.0,0.00049999,50]
[394521329,1763663902455,-171.025258,0.00049999,50]
[394521330,1763663902480,-150.0,0.00049999,50]
[394521331,1763663902507,-191.56918597,0.00049999,50]
[394521332,1763663902533,-257.3485348,0.00049999,120]
[394521333,1763663902560,-250.0,0.00049999,120]
[394521334,1763663902587,-250.0,0.00049999,120]
[394521335,1763663902613,-250.0,0.00049999,120]
[394521336,1763663902639,-250.0,0.00049999,120]
[394521337,1763663902665,-250.0,0.00049999,120]
[394521338,1763663902692,-250.0,0.00049999,120]
[394521339,1763663902720,-250.0,0.00049999,120]
[394521340,1763663902747,-250.0,0.00049999,120]
[394521341,1763663902774,-250.0,0.00049999,120]
[394521342,1763663902800,-250.0,0.00049999,120]
[394521343,1763663902825,-250.0,0.00049999,120]
[394521344,1763663902854,-250.0,0.00049999,120]
[394521345,1763663902879,-250.0,0.00049999,120]
[394521346,1763663902905,-250.0,0.00049999,120]
[394521347,1763663902931,-250.0,0.00049999,120]
[394521348,1763663902957,-250.0,0.00049999,120]
[394521349,1763663902984,-250.0,0.00049999,120]
[394521350,1763663903010,-250.0,0.00049999,120]
[394521351,1763663903040,-151.0,0.00049999,120]
[394521352,1763663903070,-152.44399677,0.00049999,120]
[394521353,1763663903101,-151.0,0.00049999,120]
[394521354,1763663903131,-500.0,0.00049999,120]
[394521355,1763663903159,-151.0,0.00049999,120]
[394521356,1763663903188,-500.0,0.00049999,120]
[394521357,1763663903216,-246.92858931,0.00049999,120]
[394521358,1763663903244,-500.0,0.00049999,120]
[394521359,1763663903273,-500.0,0.00049999,120]
[394521360,1763663903302,-500.0,0.00049999,120]
[394521361,1763663903333,-500.0,0.00049999,120]
[394521362,1763663903361,-6888.0,0.00049999,120]
[394521363,1763663903393,-414.0,0.00049999,120]
[394521364,1763663903422,-7142.856,0.00049999,120]
[394521365,1763663903451,-500.0,0.00049999,120]
[394521366,1763663903480,-151.0,0.00049999,120]
[394521367,1763663903509,-429.318,0.00049999,120]
[394521368,1763663903538,-7407.141672,0.00049999,120]
[394521369,1763663903566,-500.0,0.00049999,120]
[394521370,1763663903593,-445.202766,0.00049999,120]
[394521371,1763663903619,-151.0,0.00049999,120]
[394521372,1763663903647,-500.0,0.00049999,120]
[394521373,1763663903674,-461.67526834,0.00049999,120]
[394521374,1763663903705,-151.0,0.00049999,120]
[394521375,1763663903739,-7681.20591386,0.00049999,120]
[394521376,1763663903775,-478.75725327,0.00049999,120]
[394521377,1763663903810,-151.0,0.00049999,120]
[394521378,1763663903841,-7965.41053268,0.00049999,120]
[394521379,1763663903871,-496.47127164,0.00049999,120]
[394521380,1763663903904,-394.86029135,0.00049999,120]
[394521381,1763663903932,-151.0,0.00049999,120]
[394521382,1763663903964,-8260.13072239,0.00049999,120]
[394521383,1763663903993,-514.84070869,0.00049999,120]
[394521384,1763663904027,-151.0,0.00049999,120]
[394521385,1763663904057,-6266.77003143,0.00049999,120]
[394521386,1763663904085,-533.88981491,0.00049999,120]
[394521387,1763663904116,-151.0,0.00049999,120]
[394521388,1763663904145,-201.1590867,0.00049999,120]
[394521389,1763663904173,-151.0,0.00049999,120]
[394521390,1763663904202,-151.0,0.00049999,120]
[394521391,1763663904234,-500.0,0.00049999,120]
[394521392,1763663904264,-261.9894627,0.00049999,120]
[394521393,1763663904294,-600.0,0.00049999,120]
[394521394,1763663904320,-600.0,0.00049999,120]
[394521395,1763663904348,-500.0,0.00049999,120]
[394521396,1763663904377,-600.0,0.00049999,120]
[394521397,1763663904407,-500.0,0.00049999,120]
[394521398,1763663904434,-600.0,0.00049999,120]
[394521399,1763663904461,-600.0,0.00049999,120]
[394521400,1763663904489,-500.0,0.00049999,120]
[394521401,1763663904516,-600.0,0.00049999,120]
[394521402,1763663904545,-500.0,0.00049999,120]
[394521403,1763663904571,-600.0,0.00049999,120]
[394521404,1763663904598,-365.92599066,0.00049999,120]
[394521405,1763663904626,-500.0,0.00049999,120]
[394521406,1763663904654,-600.0,0.00049999,120]
[394521407,1763663904805,-500.0,0.00049999,120]
[394521408,1763663904842,-500.0,0.00049999,120]
[394521409,1763663904872,-600.0,0.00049999,120]
[394521410,1763663904900,-500.0,0.00049999,120]
[394521411,1763663904927,-600.0,0.00049999,120]
[394521412,1763663904954,-500.0,0.00049999,120]
[394521413,1763663904981,-600.0,0.00049999,120]
[394521414,1763663905008,-600.0,0.00049999,120]
[394521415,1763663905034,-600.0,0.00049999,120]
[394521416,1763663905061,-600.0,0.00049999,120]
[394521417,1763663905087,-600.0,0.00049999,120]
[394521418,1763663905113,-220.0,0.00049999,120]
[394521419,1763663905141,-600.0,0.00049999,120]
[394521420,1763663905167,-300.0,0.00049999,120]
[394521421,1763663905193,-220.0,0.00049999,120]
[394521422,1763663905219,-618.47822046,0.00049999,120]
[394521423,1763663905244,-321.84456048,0.00049999,120]
[394521424,1763663905272,-367.10117552,0.00049999,120]
[394521425,1763663905298,-520.0,0.00049999,120]
[394521426,1763663905325,-539.24,0.00049999,120]
[394521427,1763663905352,-559.19188,0.00049999,120]
[394521428,1763663905381,-579.88197956,0.00049999,120]
[394521429,1763663905409,-601.3376128,0.00049999,120]
[394521430,1763663905435,-637.18637966,0.00049999,120]
[394521431,1763663905462,-250.0,0.00049999,120]
[394521432,1763663905488,-250.0,0.00049999,120]
[394521433,1763663905515,-500.0,0.00049999,120]
[394521434,1763663905544,-638.59965699,0.00049999,120]
[394521435,1763663905570,-250.0,0.00049999,120]
[394521436,1763663905596,-250.0,0.00049999,120]
[394521437,1763663905624,-250.0,0.00049999,120]
[394521438,1763663905651,-250.0,0.00049999,120]
[394521439,1763663905678,-250.0,0.00049999,120]
[394521440,1763663905704,-250.0,0.00049999,120]
[394521441,1763663905731,-250.0,0.00049999,120]
[394521442,1763663905757,-500.0,0.00049999,120]
[394521443,1763663905784,-367.24646973,0.00049999,120]
[394521444,1763663905811,-500.0,0.00049999,120]
[394521445,1763663905837,-500.0,0.00049999,120]
[394521446,1763663905864,-151.0,0.00049999,120]
[394521447,1763663905893,-500.0,0.00049999,120]
[394521448,1763663905921,-500.0,0.00049999,120]
[394521449,1763663905948,-250.0,0.00049999,120]
[394521450,1763663905976,-151.0,0.00049999,120]
[394521451,1763663906004,-500.0,0.00049999,120]
[394521452,1763663906036,-500.0,0.00049999,120]
[394521453,1763663906064,-250.0,0.00049999,120]
[394521454,1763663906092,-151.0,0.00049999,120]
[394521455,1763663906118,-250.0,0.00049999,120]
[394521456,1763663906145,-151.0,0.00049999,120]
[394521457,1763663906172,-500.0,0.00049999,120]
[394521458,1763663906200,-500.0,0.00049999,120]
[394521459,1763663906227,-500.0,0.00049999,120]
[394521460,1763663906254,-500.0,0.00049999,120]
[394521461,1763663906282,-500.0,0.00049999,120]
[394521462,1763663906309,-500.0,0.00049999,120]
[394521463,1763663906334,-500.0,0.00049999,120]
[394521464,1763663906362,-250.0,0.00049999,120]
[394521465,1763663906394,-500.0,0.00049999,120]
[394521466,1763663906420,-298.8035844,0.00049999,120]
[394521467,1763663906448,-151.0,0.00049999,120]
[394521468,1763663906477,-500.0,0.00049999,120]
[394521469,1763663906504,-500.0,0.00049999,120]
[394521470,1763663906532,-250.0,0.00049999,120]
[394521471,1763663906561,-500.0,0.00049999,120]
[394521472,1763663906589,-151.0,0.00049999,120]
[394521473,1763663906616,-500.0,0.00049999,120]
[394521474,1763663906642,-500.0,0.00049999,120]
[394521475,1763663906669,-250.0,0.00049999,120]
[394521476,1763663906696,-500.0,0.00049999,120]
[394521477,1763663906723,-151.0,0.00049999,120]
[394521478,1763663906750,-151.0,0.00049999,120]
[394521479,1763663906777,-500.0,0.00049999,120]
[394521480,1763663906805,-500.0,0.00049999,120]
[394521481,1763663906832,-250.0,0.00049999,120]
[394521482,1763663906858,-500.0,0.00049999,120]
[394521483,1763663906886,-500.0,0.00049999,120]
[394521484,1763663906912,-151.0,0.00049999,120]
[394521485,1763663906938,-151.0,0.00049999,120]
[394521486,1763663906964,-500.0,0.00049999,120]
[394521487,1763663906991,-500.0,0.00049999,120]
[394521488,1763663907018,-250.0,0.00049999,120]
[394521489,1763663907049,-500.0,0.00049999,120]
[394521490,1763663907077,-500.0,0.00049999,120]
[394521491,1763663907105,-245066.5928758,0.0005,120]
[394521492,1763663907134,-300.0,0.0005,120]
[394521493,1763663907162,-150.0,0.0005,40]
[394521494,1763663907191,-476.42722931,0.0005,120]
[394521495,1763663907219,-285.0,0.0005,120]
[394521496,1763663907245,-2613.65490015,0.0005,120]
[394521497,1763663907273,-150.0,0.0005,120]
[394521498,1763663907299,-350.0,0.0005,120]
[394521499,1763663907325,-14128.25138186,0.0005,120]
[394521500,1763663907350,-500.0,0.0005,30]
[394521501,1763663907381,-1536.6887326,0.0005,120]
[394521502,1763663907407,-1000.0,0.0005,30]
[394521503,1763663907434,-200.0,0.0005,120]
[394521504,1763663907461,-779.06957913,0.0005,120]
[394521505,1763663907490,-35000.0,0.0005,120]
[394521506,1763663907518,-581.0,0.0005,30]
[394521507,1763663907548,-502.99,0.0005,120]
[394521508,1763663907576,-150.0,0.0005,120]
[394521509,1763663907604,-151.0,0.0005,120]
[394521510,1763663907629,-1096.0,0.0005,30]
[394521511,1763663907800,-424.36239015,0.00050077,30]
[394521512,1763663907829,-1008.55740202,0.00050186,120]
[394521513,1763663907855,-216.14374642,0.0005023,120]
[394521514,1763663907883,-152.0,0.000503,120]
[394521515,1763663907909,-364.49816031,0.000505,120]
[394521516,1763663907936,-35000.0,0.000505,120]
[394521517,1763663907964,-216.14374642,0.00050535,120]
[394521518,1763663907990,-500.0,0.00050548,120]
[394521519,1763663908015,-150.0,0.00050548,120]
[394521520,1763663908045,-500.0,0.00050548,60]
[394521521,1763663908071,-153.0,0.000506,120]
[394521522,1763663908097,-216.14374642,0.00050712,120]
[394521523,1763663908124,-152.0,0.000508,120]
[394521524,1763663908151,-368.0,0.000508,120]
[394521525,1763663908179,-500.0,0.00050822,120]
[394521526,1763663908206,-1444.0,0.00050959,120]
[394521527,1763663908234,-216.14374642,0.00050971,120]
[394521528,1763663908260,-518.04341752,0.00051,120]
[394521529,1763663908291,-534.63717754,0.00051,60]
[394521530,1763663908318,-150.0,0.00051,40]
[394521531,1763663908346,-1000.0,0.00051,60]
[394521532,1763663908376,-2508.0,0.00051,60]
[394521533,1763663908404,-479.01651532,0.00051,120]
[394521534,1763663908433,-524.89790974,0.00051,120]
[394521535,1763663908460,-35000.0,0.00051,120]
[394521536,1763663908486,-561.0,0.00051,30]
[394521537,1763663908514,-500.0,0.00051096,120]
[394521538,1763663908544,-154.22212715,0.00051096,120]
[394521539,1763663908571,-153.0,0.000512,120]
[394521540,1763663908597,-254.61743409,0.00051217,30]
[394521541,1763663908625,-152.0,0.000513,120]
[394521542,1763663908653,-1210.38,0.00051315,30]
[394521543,1763663908680,-1210.38,0.00051315,30]
[394521544,1763663908708,-1210.38,0.00051315,30]
[394521545,1763663908736,-1206.13,0.00051315,30]
[394521546,1763663908763,-500.0,0.0005137,120]
[394521547,1763663908790,-216.14374642,0.00051439,120]
[394521548,1763663908816,-35000.0,0.000515,120]
[394521549,1763663908843,-424.36239015,0.00051525,30]
[394521550,1763663908870,-500.0,0.00051644,120]
[394521551,1763663908897,-500.0,0.00051644,60]
[394521552,1763663908924,-216.14374642,0.00051658,120]
[394521553,1763663908952,-150.0,0.0005168,120]
[394521554,1763663908980,-912.89,0.00051767,60]
[394521555,1763663909008,-912.89,0.00051767,60]
[394521556,1763663909037,-912.89,0.00051767,60]
[394521557,1763663909064,-912.89,0.00051767,60]
[394521558,1763663909092,-152.0,0.000518,120]
[394521559,1763663909118,-153.0,0.000518,120]
[394521560,1763663909146,-500.0,0.00051918,120]
[394521561,1763663909173,-216.14374642,0.00051986,120]
[394521562,1763663909200,-2273.46055863,0.00052,120]
[394521563,1763663909227,-847.58138231,0.00052,120]
[394521564,1763663909255,-150.0,0.00052,40]
[394521565,1763663909282,-150.0,0.00052,120]
[394521566,1763663909310,-1022.1654368,0.00052,120]
[394521567,1763663909339,-526.75293328,0.00052,120]
[394521568,1763663909368,-35000.0,0.00052,120]
[394521569,1763663909399,-912.89,0.00052041,60]
[394521570,1763663909427,-912.89,0.00052041,60]
[394521571,1763663909457,-325.0,0.00052055,120]
[394521572,1763663909486,-325.0,0.00052055,120]
[394521573,1763663909515,-325.0,0.00052055,120]
[394521574,1763663909544,-325.0,0.00052055,120]
[394521575,1763663909573,-325.0,0.00052055,120]
[394521576,1763663909602,-325.0,0.00052055,120]
[394521577,1763663909630,-325.0,0.00052055,120]
[394521578,1763663909657,-325.0,0.00052055,120]
[394521579,1763663909683,-325.0,0.00052055,120]
[394521580,1763663909710,-325.0,0.00052055,120]
[394521581,1763663909735,-325.0,0.00052055,120]
[394521582,1763663909762,-325.0,0.00052055,120]
[394521583,1763663909789,-325.0,0.00052055,120]
[394521584,1763663909815,-325.0,0.00052055,120]
[394521585,1763663909842,-325.0,0.00052055,120]
[394521586,1763663909868,-325.0,0.00052055,120]
[394521587,1763663909895,-325.0,0.00052055,120]
[394521588,1763663909923,-325.0,0.00052055,120]
[394521589,1763663909950,-325.0,0.00052055,120]
[394521590,1763663909977,-325.0,0.00052055,120]
[394521591,1763663910003,-325.0,0.00052055,120]
[394521592,1763663910030,-325.0,0.00052055,120]
[394521593,1763663910057,-325.0,0.00052055,120]
[394521594,1763663910084,-325.0,0.00052055,120]
[394521595,1763663910111,-325.0,0.00052055,120]
[394521596,1763663910137,-325.0,0.00052055,120]
[394521597,1763663910165,-325.0,0.00052055,120]
[394521598,1763663910192,-325.0,0.00052055,120]
[394521599,1763663910221,-325.0,0.00052055,120]
[394521600,1763663910252,-325.0,0.00052055,120]
[394521601,1763663910280,-325.0,0.00052055,120]
[394521602,1763663910308,-325.0,0.00052055,120]
[394521603,1763663910335,-325.0,0.00052055,120]
[394521604,1763663910365,-325.0,0.00052055,120]
[394521605,1763663910395,-325.0,0.00052055,120]
[394521606,1763663910423,-325.0,0.00052055,120]
[394521607,1763663910451,-325.0,0.00052055,120]
[394521608,1763663910481,-325.0,0.00052055,120]
[394521609,1763663910508,-325.0,0.00052055,120]
[394521610,1763663910537,-325.0,0.00052055,120]
[394521611,1763663910564,-325.0,0.00052055,120]
[394521612,1763663910720,-325.0,0.00052055,120]
[394521613,1763663910752,-325.0,0.00052055,120]
[394521614,1763663910782,-325.0,0.00052055,120]
[394521615,1763663910810,-325.0,0.00052055,120]
[394521616,1763663910840,-325.0,0.00052055,120]
[394521617,1763663910869,-325.0,0.00052055,120]
[394521618,1763663910895,-325.0,0.00052055,120]
[394521619,1763663910922,-325.0,0.00052055,120]
[394521620,1763663910949,-325.0,0.00052055,120]
[394521621,1763663910976,-325.0,0.00052055,120]
[394521622,1763663911004,-325.0,0.00052055,120]
[394521623,1763663911031,-325.0,0.00052055,120]
[394521624,1763663911058,-325.0,0.00052055,120]
[394521625,1763663911084,-325.0,0.00052055,120]
[394521626,1763663911110,-325.0,0.00052055,120]
[394521627,1763663911137,-325.0,0.00052055,120]
[394521628,1763663911163,-325.0,0.00052055,120]
[394521629,1763663911189,-325.0,0.00052055,120]
[394521630,1763663911215,-325.0,0.00052055,120]
[394521631,1763663911242,-325.0,0.00052055,120]
[394521632,1763663911268,-325.0,0.00052055,120]
[394521633,1763663911296,-325.0,0.00052055,120]
[394521634,1763663911325,-325.0,0.00052055,120]
[394521635,1763663911352,-325.0,0.00052055,120]
[394521636,1763663911380,-325.0,0.00052055,120]
[394521637,1763663911408,-325.0,0.00052055,120]
[394521638,1763663911436,-325.0,0.00052055,120]
[394521639,1763663911463,-325.0,0.00052055,120]
[394521640,1763663911491,-325.0,0.00052055,120]
[394521641,1763663911519,-325.0,0.00052055,120]
[394521642,1763663911547,-325.0,0.00052055,120]
[394521643,1763663911574,-325.0,0.00052055,120]
[394521644,1763663911601,-325.0,0.00052055,120]
[394521645,1763663911628,-325.0,0.00052055,120]
[394521646,1763663911656,-325.0,0.00052055,120]